bitfinex-derivatives/quotes_BTCF0:USTF0_20210705
["timestamp","ask_amount","ask_price","bid_price","bid_amount"]
[1625517410960,0.059,33774.0,33770.0,0.24057544]
[1625517411260,0.18357544,33789.0,33770.0,0.24057544]
[1625517411403,0.30157544,33789.0,33770.0,0.24057544]
[1625517411604,0.30157544,33789.0,33763.0,0.24057544]
[1625517411706,0.5,33788.0,33762.0,0.9491]
[1625517411807,0.5,33788.0,33753.0,1.55024403]
[1625517412007,0.559,33788.0,33753.0,1.55024403]
[1625517412123,0.559,33788.0,33753.0,1.32924403]
[1625517412210,3.825,33756.0,33753.0,1.32924403]
[1625517412304,4.06472,33756.0,33742.0,0.9731]
[1625517412405,4.12372,33756.0,33742.0,0.9731]
[1625517412504,4.12372,33756.0,33736.0,1.5459614]
[1625517412654,0.72172632,33742.0,33736.0,1.5459614]
[1625517412754,0.95510632,33742.0,33736.0,1.5459614]
[1625517412857,0.95510632,33742.0,33734.0,0.24057544]
[1625517413274,1.01410632,33742.0,33734.0,0.24057544]
[1625517413455,1.01410632,33742.0,33731.0,0.24057544]
[1625517413555,1.01410632,33742.0,33717.0,1.71796012]
[1625517413659,1.01410632,33742.0,33715.0,0.9688]
[1625517413905,1.07110632,33742.0,33715.0,0.9688]
[1625517414006,1.57110632,33742.0,33715.0,0.9688]
[1625517414206,1.51210632,33742.0,33741.0,0.021]
[1625517414307,1.57110632,33742.0,33715.0,0.9688]
[1625517414411,1.07110632,33742.0,33715.0,0.9688]
[1625517414510,1.07110632,33742.0,33715.0,1.0278]
[1625517414607,4.9345,33723.0,33715.0,1.0278]
[1625517414708,1.00571632,33716.0,33715.0,1.0278]
[1625517414909,1.00571632,33716.0,33715.0,0.059]
[1625517415717,3.825,33756.0,33715.0,0.059]
[1625517415824,0.059,33738.0,33716.0,0.22563255]
[1625517415915,0.118,33738.0,33732.0,0.8878]
[1625517416008,0.059,33756.0,33732.0,0.8288]
[1625517416127,0.059,33738.0,33732.0,0.8288]
[1625517416208,0.059,33738.0,33732.0,0.8878]
[1625517416308,1.60525816,33764.0,33732.0,0.8878]
[1625517416408,0.059,33738.0,33732.0,1.21641]
[1625517416507,0.059,33764.0,33732.0,1.21641]
[1625517416708,0.24057544,33748.0,33747.0,0.24057544]
[1625517416810,0.29957544,33748.0,33747.0,0.24057544]
[1625517417210,0.35857544,33748.0,33747.0,0.29957544]
[1625517417310,0.24057544,33748.0,33747.0,0.29957544]
[1625517417410,0.29957544,33748.0,33747.0,0.29957544]
[1625517417511,0.24057544,33748.0,33747.0,0.059]
[1625517418665,0.24057544,33748.0,33747.0,0.29957544]
[1625517419431,0.24057544,33748.0,33747.0,0.24057544]
[1625517419513,0.24057544,33748.0,33747.0,0.29957544]
[1625517419617,0.24057544,33748.0,33743.0,0.24057544]
[1625517419730,0.24057544,33748.0,33747.0,0.059]
[1625517419814,0.24057544,33748.0,33747.0,0.33798]
[1625517420118,0.24057544,33748.0,33747.0,0.27898]
[1625517420666,0.48115088,33748.0,33747.0,0.27898]
[1625517420968,0.48115088,33748.0,33747.0,0.33798]
[1625517422069,0.48115088,33748.0,33747.0,0.39698]
[1625517422469,0.24057544,33751.0,33747.0,0.39698]
[1625517422671,0.24057544,33751.0,33750.0,0.48115088]
[1625517422771,0.24057544,33751.0,33750.0,0.54015088]
[1625517422972,0.24057544,33751.0,33750.0,0.59915088]
[1625517423421,0.24057544,33751.0,33750.0,5.22805088]
[1625517423521,0.18157544,33751.0,33750.0,5.22805088]
[1625517423621,0.24057544,33754.0,33750.0,5.22805088]
[1625517423721,0.24057544,33759.0,33750.0,5.28705088]
[1625517424340,0.24057544,33759.0,33750.0,0.59915088]
[1625517424434,0.24057544,33759.0,33750.0,0.54015088]
[1625517424545,0.29957544,33759.0,33750.0,0.54015088]
[1625517424642,0.24057544,33759.0,33750.0,0.59915088]
[1625517424725,0.24057544,33759.0,33757.0,0.24057544]
[1625517424830,0.24057544,33759.0,33757.0,0.29957544]
[1625517424945,0.24057544,33759.0,33757.0,0.35857544]
[1625517425927,0.24057544,33759.0,33757.0,0.29957544]
[1625517426184,0.24057544,33759.0,33757.0,0.35857544]
[1625517426526,0.24057544,33762.0,33757.0,0.35857544]
[1625517426727,0.24057544,33762.0,33761.0,0.24057544]
[1625517426829,0.24057544,33762.0,33761.0,0.29957544]
[1625517426928,0.24057544,33762.0,33761.0,0.35857544]
[1625517427135,0.24057544,33762.0,33761.0,0.29957544]
[1625517427231,0.24057544,33762.0,33761.0,0.35857544]
[1625517428075,0.24057544,33762.0,15042.0,0.42860116]
[1625517428076,0.55370544,33762.0,33727.0,4.6044]
[1625517428196,0.61270544,33762.0,33727.0,4.6044]
[1625517428283,0.67170544,33762.0,33750.0,0.29957544]
[1625517428390,0.61270544,33762.0,33750.0,0.29957544]
[1625517428489,0.67170544,33762.0,33750.0,0.29957544]
[1625517428583,0.61270544,33762.0,33750.0,0.29957544]
[1625517428785,0.75387088,33751.0,33750.0,0.29957544]
[1625517428884,0.75387088,33751.0,33750.0,0.35857544]
[1625517429286,0.75387088,33751.0,33750.0,0.29957544]
[1625517430040,0.85387088,33751.0,33750.0,0.29957544]
[1625517430186,0.85387088,33751.0,33750.0,0.35857544]
[1625517431497,0.85387088,33751.0,33750.0,0.118]
[1625517431604,0.85387088,33751.0,33750.0,0.059]
[1625517432742,0.85387088,33751.0,33750.0,0.118]
[1625517434650,0.34057544,33751.0,33750.0,0.118]
[1625517434761,0.1,33751.0,33750.0,0.67659544]
[1625517434848,0.1,33751.0,33750.0,0.61759544]
[1625517434948,0.041,33751.0,33750.0,0.61759544]
[1625517435356,0.041,33751.0,33750.0,0.55859544]
[1625517435660,0.041,33751.0,33748.0,0.24057544]
[1625517435758,0.36535,33751.0,33748.0,0.24057544]
[1625517435853,0.30635,33751.0,33748.0,0.24057544]
[1625517436251,0.30635,33751.0,33748.0,0.29957544]
[1625517436851,0.24057544,33749.0,33748.0,0.35857544]
[1625517437551,0.24057544,33749.0,33748.0,0.29957544]
[1625517438001,0.24057544,33749.0,33748.0,0.35857544]
[1625517438205,0.041,33751.0,33748.0,0.36208562]
[1625517438302,0.041,33751.0,33748.0,0.59006562]
[1625517438452,0.24057544,33755.0,33749.0,0.00350994]
[1625517438552,0.24057544,33755.0,33749.0,0.06250994]
[1625517438652,0.6429699,33791.0,33749.0,0.12150994]
[1625517438851,0.24057544,33762.0,33760.0,0.24057544]
[1625517438952,0.24057544,33762.0,33760.0,0.56377544]
[1625517439155,0.24057544,33762.0,33760.0,0.68177544]
[1625517439269,0.24057544,33762.0,33760.0,0.56377544]
[1625517439476,0.24057544,33762.0,33760.0,0.56728509]
[1625517440660,0.24057544,33762.0,33760.0,0.62628509]
[1625517441210,0.24057544,33762.0,33760.0,0.56728509]
[1625517441664,0.24057544,33762.0,33760.0,0.62628509]
[1625517442063,0.24057544,33762.0,33760.0,0.69405835]
[1625517442264,0.24057544,33766.0,33760.0,0.69405835]
[1625517442368,0.24057544,33766.0,33760.0,0.68528509]
[1625517442666,0.24057544,33766.0,33761.0,0.00350912]
[1625517442768,0.24057544,33766.0,33761.0,0.12150912]
[1625517442867,0.24057544,33766.0,33765.0,0.24057544]
[1625517442965,0.24057544,33766.0,33765.0,0.35857544]
[1625517443168,0.24057544,33766.0,33765.0,0.36208451]
[1625517443821,0.24057544,33766.0,33765.0,0.30308451]
[1625517444566,0.24057544,33766.0,33765.0,0.24408451]
[1625517444819,0.24057544,33773.0,33765.0,0.30308451]
[1625517444917,0.24057544,33773.0,33765.0,0.36208451]
[1625517445270,0.24057544,33773.0,33766.0,0.00350869]
[1625517445470,0.24057544,33773.0,33766.0,0.12150869]
[1625517445571,0.24057544,33773.0,33766.0,0.13028076]
[1625517445822,0.24057544,33773.0,33767.0,0.00350889]
[1625517446022,0.24057544,33773.0,33767.0,0.06250889]
[1625517446122,0.24057544,33773.0,33767.0,0.00350889]
[1625517446274,0.24057544,33773.0,33767.0,0.06250889]
[1625517446375,0.24057544,33773.0,33767.0,0.059]
[1625517446622,0.24057544,33773.0,33768.0,0.00350891]
[1625517446724,0.24057544,33773.0,33768.0,0.06250891]
[1625517446823,0.24057544,33773.0,33772.0,0.24057544]
[1625517446926,0.24057544,33773.0,33772.0,0.29957544]
[1625517447124,0.24057544,33773.0,33772.0,0.30308424]
[1625517447324,0.24057544,33773.0,33772.0,0.36208424]
[1625517447439,0.24057544,33776.0,33772.0,0.36208424]
[1625517447675,0.24057544,33776.0,33773.0,0.00350843]
[1625517447874,0.24057544,33776.0,33773.0,0.12150843]
[1625517448175,0.24057544,33780.0,33773.0,0.12150843]
[1625517448276,0.24057544,33780.0,33774.0,0.00350825]
[1625517448377,0.24057544,33780.0,33774.0,0.12150825]
[1625517448475,0.24057544,33780.0,33774.0,0.06250825]
[1625517448675,0.29957544,33780.0,33774.0,0.00350825]
[1625517448776,0.35657544,33780.0,33775.0,0.00350825]
[1625517448878,0.35657544,33780.0,33779.0,0.24057544]
[1625517449227,0.29757544,33780.0,33779.0,0.24057544]
[1625517449330,0.29757544,33780.0,33779.0,0.24408402]
[1625517449779,0.24057544,33780.0,33779.0,0.24408402]
[1625517450979,0.35657544,33780.0,33779.0,0.24408402]
[1625517451282,0.41557544,33780.0,33779.0,0.24408402]
[1625517451593,0.29757544,33780.0,33779.0,0.24408402]
[1625517451832,0.35657544,33780.0,33779.0,0.24408402]
[1625517451942,0.41557544,33780.0,33779.0,0.00350858]
[1625517452069,0.91557544,33780.0,33765.0,0.24057544]
[1625517452147,1.14840544,33780.0,33765.0,0.24057544]
[1625517452334,0.64840544,33780.0,33765.0,0.24057544]
[1625517452533,0.64840544,33780.0,33766.0,0.00350925]
[1625517452834,0.24057544,33767.0,33766.0,0.00350925]
[1625517452941,0.51815544,33767.0,33766.0,0.00350925]
[1625517453888,0.57715544,33767.0,33766.0,0.00350925]
[1625517453987,0.63415544,33767.0,33766.0,0.00350925]
[1625517454194,0.63415544,33767.0,33735.0,1.19696424]
[1625517454297,0.69315544,33767.0,33735.0,1.19696424]
[1625517454591,0.5,33766.0,33735.0,1.19696424]
[1625517454688,0.057,33765.0,33735.0,1.19696424]
[1625517454790,0.116,33765.0,33750.0,0.00351064]
[1625517454888,0.96230176,33751.0,33750.0,0.00351064]
[1625517454988,1.01930176,33751.0,33750.0,0.00351064]
[1625517455089,1.07830176,33751.0,33750.0,0.00351064]
[1625517455222,1.13730176,33751.0,33750.0,0.00351064]
[1625517455389,1.13730176,33751.0,33736.0,0.00351115]
[1625517455592,1.13730176,33751.0,33735.0,0.6840701]
[1625517455692,1.13730176,33751.0,33730.0,0.24057544]
[1625517455794,1.07830176,33751.0,33730.0,0.24057544]
[1625517455893,1.13730176,33751.0,33736.0,0.00351157]
[1625517456192,1.13730176,33751.0,33731.0,0.0035117]
[1625517456291,1.13730176,33751.0,33731.0,0.0625117]
[1625517456394,1.13730176,33751.0,33737.0,0.00351162]
[1625517456496,0.5,33750.0,33737.0,0.00351162]
[1625517456601,0.057,33749.0,33737.0,0.00351162]
[1625517456700,0.057,33749.0,33732.0,0.00351166]
[1625517456797,0.175,33749.0,33732.0,0.00351166]
[1625517456898,0.175,33749.0,33731.0,0.00351158]
[1625517456899,0.48115088,33733.0,33731.0,0.00351158]
[1625517456998,0.87606088,33733.0,33731.0,0.00351158]
[1625517457098,0.81906088,33733.0,33731.0,0.00351158]
[1625517457198,0.81906088,33733.0,33732.0,0.00351171]
[1625517457697,0.81906088,33733.0,33731.0,0.00351173]
[1625517457856,0.81906088,33733.0,33731.0,0.06251173]
[1625517457947,0.81906088,33733.0,33731.0,0.00351173]
[1625517458849,0.87606088,33733.0,33731.0,0.00351173]
[1625517459451,0.81906088,33733.0,33731.0,0.00351173]
[1625517459551,0.81906088,33733.0,33731.0,0.06251173]
[1625517459850,0.81906088,33733.0,33732.0,0.00351166]
[1625517460352,0.81906088,33733.0,33731.0,0.00351166]
[1625517460452,0.81906088,33733.0,33731.0,0.06251166]
[1625517460652,0.48115088,33733.0,33731.0,0.06251166]
[1625517460951,0.48115088,33733.0,33732.0,0.00351154]
[1625517461302,0.24855,33755.0,33732.0,0.06251154]
[1625517461404,0.06533563,33757.0,33732.0,0.06251154]
[1625517461518,0.059,33755.0,33733.0,0.2]
[1625517461606,0.82182142,33758.0,33734.0,0.557]
[1625517461842,0.82182142,33758.0,33748.0,0.4454]
[1625517461851,0.82182142,33758.0,33748.0,0.78644]
[1625517461968,0.9914,33784.0,33748.0,1.28644]
[1625517461969,0.65907518,33769.0,33748.0,1.28644]
[1625517462028,0.65907518,33769.0,33752.0,4.6467]
[1625517462109,0.65907518,33769.0,33753.0,0.057]
[1625517462359,0.65907518,33769.0,33762.0,1.11433]
[1625517462459,0.66297748,33774.0,33762.0,1.11433]
[1625517462556,0.66297748,33774.0,33762.0,1.23033]
[1625517462958,0.66297748,33774.0,33773.0,1.24211176]
[1625517463160,0.24057544,33781.0,33773.0,1.30111176]
[1625517463362,0.29957544,33781.0,33773.0,1.30111176]
[1625517464066,0.24057544,33781.0,33773.0,1.30111176]
[1625517464964,0.24057544,33781.0,33780.0,0.48115088]
[1625517465467,0.24057544,33781.0,33780.0,0.75635088]
[1625517466466,0.90860319,33781.0,33780.0,0.75635088]
[1625517466868,0.24057544,33781.0,33780.0,0.75635088]
[1625517467718,0.90881457,33781.0,33780.0,0.75635088]
[1625517469321,1.41163758,33781.0,33780.0,0.75635088]
[1625517469720,1.47063758,33781.0,33780.0,0.75635088]
[1625517470321,1.41163758,33781.0,33780.0,0.75635088]
[1625517470423,1.47063758,33781.0,33780.0,0.75635088]
[1625517470523,1.41163758,33781.0,33780.0,0.75635088]
[1625517470821,1.47063758,33781.0,33780.0,0.75635088]
[1625517470921,1.41163758,33781.0,33780.0,0.75635088]
[1625517471223,1.47063758,33781.0,33780.0,0.75635088]
[1625517472125,1.41163758,33781.0,33780.0,0.48115088]
[1625517472526,1.47063758,33781.0,33780.0,0.48115088]
[1625517472625,1.78805758,33781.0,33773.0,0.48115088]
[1625517472726,1.84705758,33781.0,33773.0,0.48115088]
[1625517472926,0.48115088,33774.0,33769.0,0.24057544]
[1625517473027,0.84989088,33774.0,33769.0,0.24057544]
[1625517473127,0.90889088,33774.0,33769.0,0.24057544]
[1625517473429,0.50079859,33770.0,33769.0,0.24057544]
[1625517473628,0.61879859,33770.0,33769.0,0.24057544]
[1625517474334,0.55979859,33770.0,33769.0,0.24057544]
[1625517474430,0.61879859,33770.0,33769.0,0.24057544]
[1625517474531,1.28632526,33770.0,33769.0,0.24057544]
[1625517474631,1.22732526,33770.0,33769.0,0.24057544]
[1625517474733,1.28632526,33770.0,33769.0,0.24057544]
[1625517474932,2.6927193,33770.0,33769.0,0.24057544]
[1625517475435,1.5269007,33770.0,33769.0,0.24057544]
[1625517475737,1.4679007,33770.0,33769.0,0.24057544]
[1625517475838,3.96483641,33770.0,33769.0,0.24057544]
[1625517476137,3.13314846,33770.0,33769.0,0.24057544]
[1625517476237,3.19214846,33770.0,33769.0,0.24057544]
[1625517476336,3.19214846,33770.0,33766.0,0.24057544]
[1625517476588,4.5235232,33770.0,33766.0,0.24057544]
[1625517476786,4.5235232,33770.0,33762.0,0.24057544]
[1625517476987,0.48115088,33763.0,33762.0,0.24057544]
[1625517477087,0.73247088,33763.0,33759.0,0.24057544]
[1625517477186,0.85047088,33763.0,33759.0,0.24057544]
[1625517477690,0.49883578,33760.0,33759.0,0.24057544]
[1625517477839,0.61683578,33760.0,33759.0,0.24057544]
[1625517477940,1.28178534,33760.0,33759.0,0.24057544]
[1625517482856,1.22278534,33760.0,33759.0,0.24057544]
[1625517483159,1.28178534,33760.0,33759.0,0.24057544]
[1625517483258,1.22278534,33760.0,33759.0,0.24057544]
[1625517483359,0.55783578,33760.0,33759.0,0.24057544]
[1625517483760,0.61683578,33760.0,33759.0,0.24057544]
[1625517484108,0.118,33760.0,33759.0,0.24057544]
[1625517484408,0.059,33760.0,33759.0,0.24057544]
[1625517484513,0.6165463,33760.0,33759.0,0.24057544]
[1625517484962,0.5575463,33760.0,33759.0,0.24057544]
[1625517485062,0.6165463,33760.0,33759.0,0.24057544]
[1625517485218,0.118,33760.0,33759.0,0.24057544]
[1625517485461,0.118,33760.0,33754.0,0.24057544]
[1625517485563,0.45753,33760.0,33754.0,0.24057544]
[1625517485963,1.6184718,33760.0,33754.0,0.24057544]
[1625517486365,0.95510017,33760.0,33754.0,0.24057544]
[1625517486768,1.61710697,33760.0,33754.0,0.24057544]
[1625517487070,0.48115088,33755.0,33754.0,0.24057544]
[1625517487170,0.54015088,33755.0,33754.0,0.24057544]
[1625517488319,0.59915088,33755.0,33754.0,0.24057544]
[1625517488473,0.54015088,33755.0,33754.0,0.24057544]
[1625517488672,0.59915088,33755.0,33754.0,0.24057544]
[1625517488791,0.59915088,33755.0,33747.0,1.51525684]
[1625517488944,1.09915088,33755.0,33747.0,1.0246814]
[1625517489021,1.09915088,33755.0,33747.0,0.5247814]
[1625517489072,0.72172632,33748.0,33747.0,0.5247814]
[1625517489185,1.22172632,33748.0,33747.0,0.4615814]
[1625517489274,1.50959632,33748.0,33744.0,1.21767966]
[1625517489375,0.059,33747.0,33744.0,0.77857966]
[1625517489472,3.6177,33745.0,33744.0,0.32107966]
[1625517489575,4.1177,33745.0,33742.0,1.09551355]
[1625517489670,0.059,33744.0,33742.0,1.02501355]
[1625517489770,4.1177,33745.0,33742.0,0.68721355]
[1625517489872,0.059,33744.0,33742.0,0.54021355]
[1625517489971,0.118,33744.0,33742.0,0.54021355]
[1625517490074,0.5,33743.0,33720.0,0.9871]
[1625517490373,0.677,33743.0,33720.0,1.0461]
[1625517490473,0.618,33743.0,33720.0,0.9871]
[1625517490674,2.08936689,33743.0,33720.0,0.9871]
[1625517490773,2.08936689,33743.0,33721.0,0.057]
[1625517490873,0.01722371,33742.0,33720.0,0.9871]
[1625517490974,0.07622371,33742.0,33720.0,0.9871]
[1625517491075,0.96230176,33721.0,33720.0,0.9871]
[1625517491227,1.20951176,33721.0,33716.0,0.9476]
[1625517491425,1.20951176,33721.0,33716.0,0.059]
[1625517492380,5.2757,33719.0,33716.0,0.059]
[1625517492680,5.2757,33719.0,33716.0,0.118]
[1625517492988,0.96230176,33721.0,33716.0,0.118]
[1625517493100,0.24057544,33731.0,33720.0,0.72172632]
[1625517493253,1.21978379,33735.0,33721.0,0.057]
[1625517493254,0.97920835,33735.0,33721.0,0.057]
[1625517493404,0.97893361,33736.0,33721.0,0.057]
[1625517493496,0.97893361,33736.0,33721.0,0.175]
[1625517493738,0.98020807,33744.0,33721.0,1.21561239]
[1625517493933,1.09820807,33744.0,33721.0,1.21561239]
[1625517494134,1.09820807,33744.0,33721.0,0.175]
[1625517494135,0.97964031,33742.0,33721.0,0.175]
[1625517494233,1.03864031,33742.0,33721.0,0.116]
[1625517494332,1.03864031,33742.0,33721.0,0.175]
[1625517494433,1.59764031,33742.0,33721.0,0.175]
[1625517494634,1.86856031,33742.0,33721.0,0.116]
[1625517494735,1.86856031,33742.0,33721.0,0.118]
[1625517494833,1.86856031,33742.0,33722.0,0.057]
[1625517495036,0.97899223,33740.0,33722.0,0.175]
[1625517495136,0.24057544,33735.0,33734.0,0.24057544]
[1625517495336,0.29957544,33735.0,33734.0,0.24057544]
[1625517496487,0.68390544,33735.0,33734.0,0.24057544]
[1625517497489,0.68390544,33735.0,33722.0,0.057]
[1625517497589,0.68390544,33735.0,33722.0,0.116]
[1625517498389,0.68390544,33735.0,33723.0,0.057]
[1625517498490,0.68390544,33735.0,33723.0,0.116]
[1625517498591,0.68390544,33735.0,33723.0,0.057]
[1625517498990,0.68390544,33735.0,33720.0,0.24057544]
[1625517499093,0.24057544,33728.0,33727.0,0.24057544]
[1625517499292,0.58867544,33728.0,33727.0,0.24057544]
[1625517499395,0.47067544,33728.0,33727.0,0.24057544]
[1625517499796,0.52967544,33728.0,33727.0,0.24057544]
[1625517500046,0.47067544,33728.0,33727.0,0.24057544]
[1625517500246,0.52967544,33728.0,33727.0,0.24057544]
[1625517500446,0.47067544,33728.0,33727.0,0.24057544]
[1625517500546,0.24057544,33728.0,33727.0,0.24057544]
[1625517500749,0.24057544,33735.0,33727.0,0.24057544]
[1625517500846,0.24057544,33735.0,33727.0,0.57404544]
[1625517500947,0.24057544,33735.0,33727.0,0.63304544]
[1625517501148,0.24057544,33735.0,33734.0,0.48115088]
[1625517501248,0.24057544,33735.0,33734.0,0.84697088]
[1625517501447,0.24057544,33735.0,33734.0,0.78797088]
[1625517502268,0.24057544,33738.0,33734.0,0.84697088]
[1625517502363,0.32587856,33742.0,33734.0,0.90597088]
[1625517502557,0.31397856,33742.0,33734.0,0.90597088]
[1625517502756,0.24057544,33743.0,33734.0,0.90597088]
[1625517502954,0.29957544,33743.0,33734.0,0.90597088]
[1625517503155,0.24057544,33743.0,33741.0,0.24057544]
[1625517503255,0.24057544,33743.0,33741.0,0.46752544]
[1625517503354,0.29957544,33743.0,33741.0,0.46752544]
[1625517503456,0.24057544,33743.0,33741.0,0.46752544]
[1625517503555,0.29957544,33743.0,33741.0,0.46752544]
[1625517503655,0.24057544,33743.0,33741.0,0.46752544]
[1625517504061,3.6177,33745.0,33741.0,0.46752544]
[1625517504158,3.6177,33745.0,33741.0,0.52652544]
[1625517504259,3.6177,33745.0,33741.0,0.46752544]
[1625517505163,3.6177,33745.0,33744.0,0.48115088]
[1625517507170,0.24057544,33749.0,33744.0,0.48115088]
[1625517507471,0.24057544,33749.0,33744.0,0.54015088]
[1625517507926,0.24057544,33749.0,33744.0,0.59915088]
[1625517508021,0.24057544,33749.0,33744.0,0.54015088]
[1625517508124,0.24057544,33749.0,33744.0,0.59915088]
[1625517509134,0.24057544,33749.0,33748.0,0.24057544]
[1625517509224,0.24057544,33749.0,33748.0,0.48160544]
[1625517509322,0.24057544,33749.0,33748.0,0.54060544]
[1625517509426,0.24057544,33755.0,33748.0,0.59960544]
[1625517510074,0.24057544,33758.0,33748.0,0.59960544]
[1625517510173,0.24057544,33758.0,33748.0,0.65660544]
[1625517510973,0.29957544,33758.0,33748.0,0.65660544]
[1625517511174,0.29957544,33758.0,33757.0,0.48115088]
[1625517511276,0.29957544,33758.0,33757.0,0.74838088]
[1625517511778,0.24057544,33758.0,33757.0,0.74838088]
[1625517512084,0.24057544,33758.0,33757.0,0.80738088]
[1625517513177,0.98783991,33765.0,33757.0,0.80738088]
[1625517513289,0.059,33765.0,33757.0,0.86638088]
[1625517513422,1.11045246,33767.0,33757.0,0.86638088]
[1625517513491,1.11045246,33767.0,33757.0,0.92338088]
[1625517513982,1.11045246,33767.0,33757.0,0.86438088]
[1625517514100,2.36157569,33789.0,33757.0,0.86438088]
[1625517514101,1.32234493,33780.0,33757.0,0.86438088]
[1625517514283,1.32234493,33780.0,33758.0,0.2]
[1625517514388,1.32234493,33780.0,33759.0,0.057]
[1625517514586,1.32284304,33782.0,33759.0,0.116]
[1625517514788,1.32284304,33782.0,33759.0,0.175]
[1625517514888,1.32284304,33782.0,33760.0,0.2]
[1625517514989,1.3233056,33784.0,33761.0,0.057]
[1625517515093,1.3233056,33784.0,33762.0,0.2]
[1625517515188,1.3233056,33784.0,33783.0,0.96230176]
[1625517515289,1.3233056,33784.0,33783.0,1.21601176]
[1625517515590,1.3823056,33784.0,33783.0,1.21601176]
[1625517515789,1.3233056,33784.0,33783.0,1.21601176]
[1625517515993,1.3823056,33784.0,33783.0,1.21601176]
[1625517516140,1.3233056,33784.0,33783.0,1.21601176]
[1625517516240,1.89423732,33793.0,33783.0,1.21601176]
[1625517516241,1.3233658,33785.0,33783.0,0.86510849]
[1625517517293,1.32003736,33786.0,33783.0,0.86510849]
[1625517517493,1.37903736,33786.0,33783.0,0.86510849]
[1625517517595,1.37903736,33786.0,33783.0,0.61139849]
[1625517517995,1.43803736,33786.0,33783.0,0.61139849]
[1625517518196,1.3189365,33785.0,33783.0,0.61139849]
[1625517518296,1.7175965,33785.0,33783.0,0.61139849]
[1625517518646,1.6585965,33785.0,33783.0,0.61139849]
[1625517519299,0.33966,33785.0,33783.0,0.61139849]
[1625517519399,1.3191005,33786.0,33783.0,0.61139849]
[1625517519550,1.3781005,33786.0,33783.0,0.61139849]
[1625517519902,0.059,33786.0,33783.0,0.61139849]
[1625517520106,0.118,33786.0,33783.0,0.61139849]
[1625517520403,1.31832414,33787.0,33783.0,0.61139849]
[1625517520606,1.31804337,33785.0,33783.0,0.61139849]
[1625517521004,1.31872994,33786.0,33783.0,0.61139849]
[1625517521103,0.059,33785.0,33783.0,0.61139849]
[1625517521505,1.31872994,33786.0,33783.0,0.61139849]
[1625517521604,1.37772994,33786.0,33783.0,0.61139849]
[1625517522813,1.31872994,33786.0,33783.0,0.61139849]
[1625517523468,0.24057544,33788.0,33783.0,0.61139849]
[1625517524217,0.29957544,33788.0,33783.0,0.61139849]
[1625517524517,0.24057544,33788.0,33783.0,0.61139849]
[1625517524919,0.29957544,33788.0,33783.0,0.61139849]
[1625517525022,0.24057544,33788.0,33783.0,0.61139849]
[1625517525121,1.5637063,33788.0,33783.0,0.61139849]
[1625517525770,0.24057544,33788.0,33783.0,0.61139849]
[1625517526926,1.62343143,33788.0,33783.0,0.61139849]
[1625517527022,1.56443143,33788.0,33783.0,0.61139849]
[1625517527224,1.56443143,33788.0,33787.0,0.24057544]
[1625517527833,1.56443143,33788.0,33783.0,0.37082305]
[1625517528826,0.16573706,33784.0,33783.0,0.37082305]
[1625517529227,1.56499868,33788.0,33783.0,0.37082305]
[1625517529328,0.24057544,33784.0,33783.0,0.37082305]
[1625517531936,0.48894544,33784.0,33783.0,0.13024761]
[1625517532041,0.54794544,33784.0,33775.0,0.24057544]
[1625517532160,0.60694544,33784.0,33775.0,0.24057544]
[1625517532248,1.10694544,33784.0,33770.0,0.057]
[1625517532385,1.10694544,33784.0,33760.0,0.17278205]
[1625517532487,1.10694544,33784.0,10541.0,0.14]
[1625517532488,1.10694544,33784.0,33757.0,0.1728126]
[1625517532790,1.10694544,33784.0,33762.0,1.0005]
[1625517533090,0.4183569,33772.0,33762.0,0.059]
[1625517533187,0.4773569,33772.0,33762.0,0.059]
[1625517533288,0.5363569,33772.0,33750.0,0.17286591]
[1625517533388,0.24057544,33771.0,33770.0,0.24057544]
[1625517533490,0.29957544,33771.0,33770.0,0.24057544]
[1625517534341,0.35857544,33771.0,33770.0,0.24057544]
[1625517534891,0.29957544,33771.0,33770.0,0.24057544]
[1625517535492,0.54015088,33771.0,33770.0,0.24057544]
[1625517535742,0.59915088,33771.0,33770.0,0.24057544]
[1625517536595,0.59915088,33771.0,33766.0,0.24057544]
[1625517537147,1.16079786,33768.0,33766.0,0.24057544]
[1625517537246,1.27879786,33768.0,33758.0,0.9635]
[1625517537444,0.24057544,33759.0,33758.0,1.26307544]
[1625517537546,0.48283544,33759.0,33758.0,1.26307544]
[1625517537744,0.48283544,33759.0,33758.0,0.29957544]
[1625517539900,0.24057544,33759.0,33758.0,0.29957544]
[1625517540200,0.24057544,33759.0,33758.0,0.35857544]
[1625517541002,0.24057544,33759.0,33758.0,0.29957544]
[1625517542556,0.24057544,33759.0,33758.0,0.53824544]
[1625517544158,0.24057544,33759.0,33758.0,0.59724544]
[1625517545110,0.16732088,33766.0,33758.0,0.59724544]
[1625517545310,0.16792935,33767.0,33758.0,0.59724544]
[1625517545510,0.16792935,33767.0,33766.0,0.72172632]
[1625517545610,0.16792935,33767.0,33766.0,1.05820632]
[1625517545713,0.16792935,33767.0,33766.0,1.11720632]
[1625517545911,0.16813576,33772.0,33766.0,1.11720632]
[1625517546413,1.17594251,33776.0,33766.0,1.11720632]
[1625517546414,0.16823327,33773.0,33766.0,1.11720632]
[1625517546615,0.22723327,33773.0,33766.0,1.11720632]
[1625517546715,0.16824722,33772.0,33766.0,1.11720632]
[1625517546814,0.16824722,33772.0,33766.0,1.17620632]
[1625517547174,0.16832232,33774.0,33766.0,1.17620632]
[1625517547565,0.16832232,33774.0,33773.0,0.48115088]
[1625517547667,0.16832232,33774.0,33773.0,0.81505088]
[1625517547767,0.16832232,33774.0,33773.0,0.87405088]
[1625517548268,0.16833046,33775.0,33773.0,0.87405088]
[1625517548365,0.22733046,33775.0,33773.0,0.87405088]
[1625517548669,0.059,33775.0,33773.0,0.87405088]
[1625517549119,0.16838057,33774.0,33773.0,0.87405088]
[1625517549518,0.16839973,33775.0,33773.0,0.87405088]
[1625517549619,0.22739973,33775.0,33773.0,0.87405088]
[1625517550874,0.16839455,33774.0,33773.0,0.87405088]
[1625517551374,0.16844979,33776.0,33773.0,0.87405088]
[1625517551476,0.22744979,33776.0,33773.0,0.87405088]
[1625517551580,0.16844979,33776.0,33775.0,0.24057544]
[1625517551684,0.67329431,33777.0,33775.0,0.24057544]
[1625517551685,0.16839768,33777.0,33775.0,0.29957544]
[1625517551805,0.16839768,33777.0,33775.0,0.35857544]
[1625517552189,0.16848349,33778.0,33775.0,0.35857544]
[1625517552681,0.16849656,33781.0,33775.0,0.35857544]
[1625517553179,1.01013771,33783.0,33775.0,0.35857544]
[1625517553383,0.16852027,33783.0,33775.0,0.35857544]
[1625517553578,0.67357604,33785.0,33782.0,0.72172632]
[1625517553681,0.67357604,33785.0,33782.0,1.25908632]
[1625517553779,0.67357604,33785.0,33782.0,1.31808632]
[1625517553879,0.20917604,33785.0,33782.0,1.31808632]